bitfinex/quotes_ETHUSD_20251213
["timestamp","ask_amount","ask_price","bid_price","bid_amount"]
[1765601366293,0.001,3092.8,3092.7,9.4504604]
[1765601366589,0.001,3092.8,3092.7,9.5854604]
[1765601367164,0.001,3092.8,3092.7,9.4504604]
[1765601367566,0.4571,3092.8,3092.7,9.4504604]
[1765601368895,0.001,3092.8,3092.7,9.5854604]
[1765601380204,0.001,3092.8,3092.7,9.4504604]
[1765601380413,0.4571,3092.8,3092.7,9.4504604]
[1765601382820,0.001,3092.8,3092.7,9.4504604]
[1765601383323,0.001,3092.8,3092.7,9.5854604]
[1765601384305,0.001,3092.8,3092.7,9.7204604]
[1765601386107,0.001,3092.8,3092.7,9.5854604]
[1765601388260,0.001,3092.8,3092.7,35.4289284]
[1765601388556,0.001,3092.8,3092.7,32.8421154]
[1765601388725,0.001,3092.8,3092.7,31.5860574]
[1765601389352,0.001,3092.8,3092.7,34.0274544]
[1765601390458,0.001,3092.8,3092.7,34.0348924]
[1765601390871,0.001,3092.8,3092.7,33.0348924]
[1765601391465,0.001,3092.8,3092.7,34.0274544]
[1765601392644,0.001,3092.8,3092.7,33.0274544]
[1765601393347,0.001,3092.8,3092.7,31.7289544]
[1765601396443,0.001,3092.8,3092.7,30.4304544]
[1765601397368,0.001,3092.8,3092.7,5.4289284]
[1765601397673,0.001,3092.8,3092.7,30.4304544]
[1765601398567,0.001,3092.8,3092.7,5.4289284]
[1765601398776,0.001,3092.8,3092.7,30.3700834]
[1765601400657,0.001,3092.8,3092.7,30.0466604]
[1765601401075,0.001,3092.8,3092.7,30.3700834]
[1765601401379,0.001,3092.8,3092.7,30.0466604]
[1765601402374,0.001,3092.8,3092.7,30.3700834]
[1765601403676,0.001,3092.8,3092.7,30.0466604]
[1765601404668,0.001,3092.8,3092.7,30.3700834]
[1765601404865,0.001,3092.8,3092.7,30.0466604]
[1765601405178,0.001,3092.8,3092.7,28.9441604]
[1765601405899,0.001,3092.8,3092.7,31.76702434]
[1765601408974,0.9409,3092.8,3092.7,7.6332384]
[1765601409603,0.9409,3092.8,3092.7,5.2939284]
[1765601409805,0.9409,3092.8,3092.7,2.06050777]
[1765601410175,0.9409,3092.8,3092.7,5.2939284]
[1765601419206,0.4843,3092.8,3092.7,5.2939284]
[1765601419412,0.4843,3092.8,3092.7,8.11679234]
[1765601422526,0.001,3092.8,3092.7,8.11679234]
[1765601423016,0.001,3092.8,3092.7,8.25179234]
[1765601430726,0.001,3092.8,3092.7,8.25186129]
[1765601440721,0.001,3092.8,3092.7,8.38686129]
[1765601442013,0.001,3092.8,3092.7,17.28075729]
[1765601442214,0.001,3092.8,3092.7,38.25186129]
[1765601442628,0.001,3092.8,3092.7,38.38686129]
[1765601443432,0.001,3092.8,3092.7,38.25186129]
[1765601447709,0.001,3092.8,3092.7,37.54802729]
[1765601447930,0.001,3092.8,3092.7,36.54802729]
[1765601448107,0.001,3092.8,3092.7,14.9061904]
[1765601448309,0.001,3092.8,3092.7,8.25186129]
[1765601448510,0.001,3092.8,3092.7,26.44814529]
[1765601449642,0.4559,3092.8,3092.7,26.31108229]
[1765601449814,0.4559,3092.8,3092.7,25.20858229]
[1765601450626,0.4559,3092.8,3092.7,26.24639329]
[1765601451548,0.4559,3092.8,3092.7,26.56981629]
[1765601451842,0.4559,3092.8,3092.7,26.24639329]
[1765601452138,0.001,3092.8,3092.7,26.24639329]
[1765601452642,0.001,3092.8,3092.7,26.57381629]
[1765601452810,0.001,3092.8,3092.7,26.25039329]
[1765601455955,0.001,3092.8,3092.7,8.11686129]
[1765601456126,0.001,3092.8,3092.7,26.24639329]
[1765601456323,0.001,3092.8,3092.7,26.38139329]
[1765601457154,0.001,3092.8,3092.7,26.67889629]
[1765601458118,0.001,3092.8,3092.7,27.82709629]
[1765601458319,0.001,3092.8,3092.7,26.82709629]
[1765601459030,0.001,3092.8,3092.7,8.25186129]
[1765601459341,0.001,3092.8,3092.7,26.82709629]
[1765601459524,0.4669,3092.8,3092.7,23.56774329]
[1765601461972,0.4669,3092.8,3092.7,23.11774329]
[1765601462256,0.4669,3092.8,3092.7,4.7849284]
[1765601462434,0.9582,3092.8,3092.7,5.2939284]
[1765601475168,0.9582,3092.8,3092.7,4.7849284]
[1765601475362,0.9582,3092.8,3092.7,5.2939284]
[1765601477273,0.9582,3092.8,3092.7,0.97103248]
[1765601477454,4.19151608,3092.8,3092.2,0.509]
[1765601477660,1.23378254,3092.7,3092.4,0.97102933]
[1765601478168,0.4659,3092.5,3092.4,0.97102933]
[1765601478674,0.9572,3092.5,3092.4,0.97102933]
[1765601480457,0.9572,3092.5,3092.4,1.55150462]
[1765601481778,0.9572,3092.5,3092.4,0.97102933]
[1765601482775,0.9572,3092.5,3092.3,0.58047529]
[1765601482953,0.74248254,3092.7,3092.4,0.58047529]
[1765601483159,3.23432653,3092.8,3092.4,0.58047529]
[1765601483377,0.4581,3092.5,3092.3,0.58047529]
[1765601483584,0.4581,3092.4,3092.3,0.58047529]
[1765601484162,0.9406,3092.4,3092.3,0.58047529]
[1765601484369,0.9406,3092.4,3092.2,2.06050462]
[1765601484667,0.9406,3092.3,3092.2,2.06050462]
[1765601485777,0.8906,3092.3,3092.2,2.06050462]
[1765601486655,0.8906,3092.3,3092.2,0.97102933]
[1765601486871,0.8906,3092.3,3092.1,0.509]
[1765601487064,0.4081,3092.3,3092.2,3.81441876]
[1765601487253,3.23438566,3092.8,3092.2,3.81441876]
[1765601487458,0.4734,3092.3,3092.2,3.81441876]
[1765601487858,0.9241,3092.3,3092.2,0.58047529]
[1765601488687,0.64676025,3092.7,3092.2,0.76547529]
[1765601488865,0.001,3092.8,3092.2,3.99938734]
[1765601489186,0.4507,3092.7,3092.2,5.15542296]
[1765601489688,0.4507,3092.7,3092.2,8.38936643]
[1765601490262,0.4507,3092.7,3092.3,0.58047529]
[1765601493096,0.4507,3092.7,3092.3,3.81423974]
[1765601494693,0.4734,3092.4,3092.3,0.58047529]
[1765601495292,0.9241,3092.4,3092.3,0.58047529]
[1765601499525,0.9241,3092.4,3092.3,1.55151091]
[1765601501902,0.9241,3092.4,3092.3,0.97103562]
[1765601502084,0.9241,3092.4,3092.3,1.55151091]
[1765601504408,0.9241,3092.4,3092.3,0.97103562]
[1765601504703,0.9241,3092.4,3092.0,1.08947529]
[1765601504878,0.4734,3092.1,3092.0,1.08947529]
[1765601505080,0.9241,3092.1,3092.0,0.58047529]
[1765601505278,0.9241,3092.1,3092.0,1.08947529]
[1765601505503,0.9241,3092.1,3092.0,2.06062407]
[1765601505708,0.9241,3092.1,3092.0,1.48014878]
[1765601506501,0.9241,3092.1,3092.0,5.29477672]
[1765601510010,0.9241,3092.1,3092.0,4.78577672]
[1765601510210,0.9241,3092.1,3092.0,5.29477672]
[1765601519423,0.9241,3092.1,3092.0,0.58047529]
[1765601520291,0.9241,3092.1,3092.0,3.81462794]
[1765601520513,0.4734,3092.1,3092.0,3.81462794]
[1765601522507,0.4799,3092.3,3092.0,3.99962794]
[1765601522716,0.4799,3092.3,3092.1,0.58047529]
[1765601522897,0.4799,3092.7,3092.2,0.185]
[1765601523317,0.4799,3092.7,3092.2,1.15606705]
[1765601524825,3.71335038,3092.7,3092.2,1.15606705]
[1765601525328,0.4799,3092.6,3092.2,1.15606705]
[1765601525517,0.4799,3092.6,3092.2,0.97106705]
[1765601526629,0.4799,3092.6,3092.3,0.58047529]
[1765601530233,3.2343627,3092.8,3092.3,0.58047529]
[1765601530409,0.4799,3092.7,3092.3,3.8142829]
[1765601530827,0.4799,3092.7,3092.3,4.78532166]
[1765601531330,0.001,3092.8,3092.4,0.185]
[1765601532022,0.4809,3092.8,3092.5,0.58047529]
[1765601536237,0.4809,3092.8,3092.4,0.58047529]
[1765601536415,0.4863,3092.6,3092.4,0.58047529]
[1765601538546,0.9662,3092.6,3092.4,0.58047529]
[1765601543147,0.9662,3092.6,3092.5,0.97102933]
[1765601554341,0.4863,3092.6,3092.5,0.97102933]
[1765601557864,0.4885,3092.8,3092.5,1.15602933]
[1765601558226,3.72183133,3092.8,3092.5,1.15602933]
[1765601558431,4.41732702,3092.8,3092.5,1.15602933]
[1765601558652,0.486,3092.6,3092.5,0.97102933]
[1765601560661,0.486,3092.6,3092.5,4.78513436]
[1765601561043,0.4875,3092.7,3092.5,4.78513436]
[1765601561636,0.001,3092.8,3092.5,4.78513436]
[1765601561835,0.4885,3092.8,3092.5,4.78513436]
[1765601563665,0.4885,3092.8,3092.5,3.81410503]
[1765601563833,0.4885,3092.8,3092.7,0.58047529]
[1765601564040,0.001,3092.8,3092.7,0.58047529]
[1765601564859,0.001,3092.8,3092.7,1.06797529]
[1765601570269,0.487,3092.8,3092.7,1.06797529]
[1765601573050,0.487,3092.8,3092.7,4.30139592]
[1765601573251,0.487,3092.8,3092.7,4.48639592]
[1765601573252,0.001,3092.8,3092.7,4.48639592]
[1765601573451,0.001,3092.8,3092.7,4.67139592]
[1765601575777,0.001,3092.8,3092.7,7.49505472]
[1765601581185,0.001,3092.8,3092.7,7.31005472]
[1765601585259,0.4618,3092.8,3092.7,7.12505472]
[1765601585858,0.4618,3092.8,3092.7,4.30139592]
[1765601586491,0.4618,3092.8,3092.7,5.10578797]
[1765601586987,0.001,3092.8,3092.7,5.10578797]
[1765601587486,0.001,3092.8,3092.7,5.29078797]
[1765601596294,0.001,3092.8,3092.7,5.79978797]
[1765601605282,0.001,3092.8,3092.7,5.98478797]
[1765601609998,0.001,3092.8,3092.7,5.79978797]
[1765601610800,0.9464,3092.8,3092.7,4.81039592]
[1765601611586,0.4656,3092.8,3092.7,4.81039592]
[1765601616913,0.9464,3092.8,3092.7,4.81039592]
[1765601617611,0.001,3092.8,3092.7,4.99539592]
[1765601619414,0.4656,3092.8,3092.7,4.81039592]
[1765601619796,0.9464,3092.8,3092.7,4.81039592]
[1765601620388,0.4656,3092.8,3092.7,4.81039592]
[1765601627926,0.001,3092.8,3092.7,4.99539592]
[1765601628115,0.001,3092.8,3092.7,5.18039592]
[1765601628515,0.001,3092.8,3092.7,4.99539592]
[1765601635234,0.001,3092.8,3092.7,4.81039592]
[1765601639035,0.4543,3092.8,3092.7,4.81039592]
[1765601646037,0.001,3092.8,3092.7,4.81039592]
[1765601647940,0.001,3092.8,3092.7,7.63323297]
[1765601655316,0.4543,3092.8,3092.7,7.63323297]
[1765601655515,0.001,3092.8,3092.7,7.81823297]
[1765601658649,0.001,3092.8,3092.7,7.81801718]
[1765601672864,0.001,3092.8,3092.7,38.00301718]
[1765601673042,0.001,3092.8,3092.7,37.78085318]
[1765601673542,0.001,3092.8,3092.7,31.21726518]
[1765601673930,0.001,3092.8,3092.7,34.72685618]
[1765601674935,0.001,3092.8,3092.7,35.72685618]
[1765601675964,0.001,3092.8,3092.7,36.81998418]
[1765601676336,0.001,3092.8,3092.7,35.81998418]
[1765601676963,0.001,3092.8,3092.7,8.00301718]
[1765601677167,0.001,3092.8,3092.7,35.40538818]
[1765601677464,0.001,3092.8,3092.7,30.11228118]
[1765601677962,0.001,3092.8,3092.7,8.00301718]
[1765601678155,0.001,3092.8,3092.7,30.11228118]
[1765601678357,0.001,3092.8,3092.7,29.78886218]
[1765601678568,0.001,3092.8,3092.7,29.60386218]
[1765601679565,0.001,3092.8,3092.7,29.92728118]
[1765601680666,0.001,3092.8,3092.7,27.70256618]
[1765601680872,0.464,3092.8,3092.7,7.81801718]
[1765601681165,0.464,3092.8,3092.7,7.63301718]
[1765601682983,0.464,3092.8,3092.7,19.89921418]
[1765601683171,0.001,3092.8,3092.7,20.08421418]
[1765601684069,0.001,3092.8,3092.7,25.21312418]
[1765601684988,0.001,3092.8,3092.7,7.81801718]
[1765601685368,0.001,3092.8,3092.7,4.99539592]
[1765601685691,0.001,3092.8,3092.7,10.39281018]
[1765601686180,0.001,3092.8,3092.7,24.60511618]
[1765601686544,0.001,3092.8,3092.7,22.80306618]
[1765601686896,0.001,3092.8,3092.7,20.94269018]
[1765601687257,0.001,3092.8,3092.7,29.84986118]
[1765601687458,0.001,3092.8,3092.7,29.52644218]
[1765601688279,0.001,3092.8,3092.7,33.63214018]
[1765601688480,0.001,3092.8,3092.7,33.30872118]
[1765601688654,0.001,3092.8,3092.7,33.49372118]
[1765601689163,0.001,3092.8,3092.7,33.30872118]
[1765601689574,0.001,3092.8,3092.7,35.47788118]
[1765601689750,0.001,3092.8,3092.7,27.92313518]
[1765601689957,0.001,3092.8,3092.7,23.86222318]
[1765601690556,0.001,3092.8,3092.7,23.86207812]
[1765601690758,0.001,3092.8,3092.7,24.33839712]
[1765601691669,0.001,3092.8,3092.7,7.81787212]
[1765601691846,0.001,3092.8,3092.7,24.33839712]
[1765601692048,0.001,3092.8,3092.7,22.97926912]
[1765601692766,0.001,3092.8,3092.7,24.33839712]
[1765601693787,0.001,3092.8,3092.7,23.10598912]
[1765601693952,0.001,3092.8,3092.7,22.26389312]
[1765601694886,0.001,3092.8,3092.7,26.16893512]
[1765601695076,0.001,3092.8,3092.7,25.84551612]
[1765601695885,0.001,3092.8,3092.7,26.16893512]
[1765601696287,0.001,3092.8,3092.7,25.84551612]
[1765601696582,0.001,3092.8,3092.7,19.09078512]
[1765601696784,0.477,3092.8,3092.7,7.63287212]
[1765601697194,0.9646,3092.8,3092.7,7.63287212]
[1765601699892,0.9646,3092.8,3092.7,1.06797529]
[1765601701887,0.9646,3092.8,3092.7,0.4875]
[1765601702871,1.38437835,3092.8,3092.7,0.4875]
[1765601703062,4.19791608,3092.8,3092.7,0.4875]
[1765601703266,7.43123216,3092.8,3091.9,2.8224762]
[1765601703461,0.476,3092.0,3091.9,3.40295149]
[1765601703667,0.476,3092.0,3091.9,4.06668236]
[1765601703987,0.9636,3092.0,3091.9,4.06668236]
[1765601704189,0.9636,3092.0,3091.9,5.03774627]
[1765601704498,0.9636,3092.0,3091.9,8.27200352]
[1765601705467,0.9636,3092.0,3091.9,5.03774627]
[1765601705665,0.9636,3092.0,3091.9,4.45727098]
[1765601705869,0.9636,3092.0,3091.9,0.97106391]
[1765601713718,4.19775265,3092.0,3091.9,0.97106391]
[1765601720013,7.4319053,3092.0,3091.4,0.97124625]
[1765601720198,0.6769,3091.9,3091.4,0.97124625]
[1765601720398,0.476,3091.5,3091.4,0.97124625]
[1765601720808,0.9636,3091.5,3091.4,0.97124625]
[1765601723723,0.9636,3091.5,3091.3,0.58047529]
[1765601724417,0.4714,3091.4,3091.3,0.58047529]
[1765601725091,0.4876,3091.5,3091.3,0.76547529]
[1765601725292,0.4522,3091.7,3091.3,0.76547529]
[1765601727586,0.4522,3091.7,3091.3,4.00035231]
[1765601727792,0.4522,3091.7,3091.4,0.58047529]
[1765601734604,0.4522,3091.7,3091.2,4.78868093]
[1765601735422,0.4522,3091.7,3091.4,0.58047529]
[1765601738121,0.4522,3091.7,3091.4,3.23476654]
[1765601738326,0.4522,3091.7,3091.5,0.58047529]
[1765601739719,0.1893,3091.9,3091.5,0.58047529]
[1765601739928,0.6415,3091.9,3091.5,0.58047529]
[1765601740426,0.4522,3091.8,3091.6,0.58047529]
[1765601741322,0.4522,3091.8,3091.4,3.81523698]
[1765601747636,0.4522,3091.8,3091.6,0.58047529]
[1765601750436,0.4536,3091.7,3091.6,0.58047529]
[1765601756340,0.4536,3091.7,3091.4,3.81520618]
[1765601757939,0.4536,3091.7,3091.6,0.58047529]
[1765601768130,0.9387,3091.7,3091.6,0.58047529]
[1765601771252,0.4536,3091.7,3091.6,0.58047529]
[1765601776460,0.4536,3091.7,3091.6,3.81504638]
[1765601782869,0.4772,3092.2,3091.7,0.58047529]
[1765601783054,0.9862,3092.2,3092.0,0.58047529]
[1765601783564,0.9633,3092.1,3092.0,0.58047529]
[1765601785147,0.9633,3092.1,3092.0,0.9633]
[1765601811071,0.4861,3092.1,3092.0,0.9633]
[1765601811278,0.7067,3092.3,3092.0,0.9633]
[1765601811480,1.64964828,3092.3,3092.0,0.9633]
[1765601812006,1.15064828,3092.3,3092.0,0.9633]
[1765601812318,0.462,3092.1,3092.0,0.9633]
[1765601819512,0.4662,3092.2,3092.0,0.9633]
[1765601824315,0.462,3092.1,3092.0,0.9633]
[1765601824790,0.9282,3092.1,3092.0,0.9633]
[1765601827623,4.37013288,3092.1,3091.4,3.2347111]
[1765601827791,0.462,3092.0,3091.5,0.58047529]
[1765601827992,0.509,3091.9,3091.5,0.58047529]
[1765601828391,0.4662,3091.8,3091.5,0.58047529]
[1765601829223,0.4662,3091.8,3091.5,1.55185362]
[1765601832416,0.4662,3091.8,3091.5,4.78651759]
[1765601832622,0.4662,3091.8,3091.6,0.58047529]
[1765601832823,0.4662,3091.8,3091.6,1.55182217]
[1765601833930,0.4662,3091.8,3091.6,0.58047529]
[1765601834227,0.9752,3092.0,3091.7,0.97131229]
[1765601834396,1.4169175,3092.0,3091.7,0.97131229]
[1765601834593,0.462,3091.8,3091.7,0.97131229]
[1765601834927,0.4662,3092.0,3091.7,0.97131229]
[1765601835096,0.4662,3092.0,3091.7,1.15631229]
[1765601835417,0.4662,3092.0,3091.7,0.185]
[1765601835713,0.4662,3092.0,3091.8,0.97126197]
[1765601836109,0.462,3091.9,3091.8,0.97126197]
[1765601837594,0.9282,3091.9,3091.8,0.97126197]
[1765601841930,0.462,3091.9,3091.8,0.97126197]
[1765601845927,0.462,3091.9,3091.6,0.58047529]
[1765601846129,0.462,3091.9,3091.6,1.55173726]
[1765601849227,0.4904,3092.1,3091.8,0.185]
[1765601849428,3.74299301,3092.2,3091.8,0.185]
[1765601849603,0.3940693,3092.1,3091.8,0.185]
[1765601849798,4.21429301,3092.2,3091.8,0.185]
[1765601849799,0.4713,3092.2,3091.8,0.185]
[1765601850121,0.4713,3092.2,3091.8,0.37]
[1765601850526,0.4713,3092.2,3091.8,0.185]
[1765601851222,3.70524407,3092.2,3091.8,0.185]
[1765601852132,3.23394407,3092.2,3091.8,0.185]
[1765601852432,0.4713,3092.1,3091.8,0.185]
[1765601857908,3.94054599,3092.3,3091.8,0.185]
[1765601858108,0.4713,3092.2,3091.8,0.185]
[1765601860236,3.70531221,3092.2,3091.8,0.185]
[1765601860442,0.4798,3091.9,3091.7,0.97121795]
[1765601861139,0.9511,3091.9,3091.7,0.97121795]
[1765601861441,0.9511,3091.9,3091.7,1.55169324]
[1765601862544,0.9511,3091.9,3091.7,0.97121795]
[1765601863337,0.9511,3091.9,3091.7,1.55169324]
[1765601863713,0.4798,3091.8,3091.7,1.55169324]
[1765601865154,0.4798,3091.8,3091.7,0.97121795]
[1765601865443,0.9511,3091.8,3091.6,0.97125254]
[1765601866245,0.9511,3091.8,3091.7,0.58047529]
[1765601869150,0.4798,3091.8,3091.7,0.58047529]
[1765601872342,4.11966586,3091.8,3091.7,0.509]
[1765601872658,8.68391607,3091.8,3091.2,0.002]
[1765601872856,0.49,3091.7,3091.2,0.002]
[1765601873463,3.36419509,3091.6,3091.2,0.002]
[1765601873966,0.49,3091.5,3091.2,0.002]
[1765601875827,3.72468434,3091.5,3091.2,0.002]
[1765601876032,4.23468434,3091.5,3091.2,0.002]
[1765601876233,0.49,3091.4,3091.2,0.002]
[1765601876755,0.4583,3091.3,3091.2,0.002]
[1765601881038,3.2343901,3091.8,3091.2,0.372]
[1765601881243,0.37243901,3091.7,3091.3,0.185]
[1765601881632,0.49,3091.6,3091.3,0.185]
[1765601887755,0.49,3091.6,3091.3,3.41987875]
[1765601887957,0.49,3092.0,3091.5,0.185]
[1765601888136,0.49,3092.0,3091.6,0.185]
[1765601889472,4.47104196,3092.0,3091.6,0.185]
[1765601889649,0.49,3091.9,3091.6,0.185]
[1765601891853,0.49,3091.9,3091.6,3.41949595]
[1765601894483,4.23394347,3092.2,3091.8,0.185]
[1765601894983,4.23394347,3092.2,3091.6,3.41949595]
[1765601895184,0.49,3092.1,3091.6,3.23449595]
[1765601896485,0.49,3092.1,3091.5,3.81515101]
[1765601897268,0.49,3092.1,3091.5,7.23482673]
[1765601902188,0.51,3092.2,3091.7,3.23446647]
[1765601902577,0.9627,3092.2,3091.7,3.23446647]
[1765601902783,0.1977,3092.3,3091.7,3.23446647]
[1765601902982,1.50355931,3092.3,3091.8,0.185]
[1765601905195,0.99355931,3092.3,3091.8,3.41930575]
[1765601905883,0.4654,3092.2,3091.8,3.41930575]
[1765601906391,0.4654,3092.2,3091.6,6.46914218]
[1765601906595,0.4654,3092.2,3091.7,0.58047529]
[1765601908668,0.54085931,3092.3,3091.8,3.41936186]
[1765601909070,1.00625931,3092.3,3091.8,3.41936186]
[1765601909281,0.4654,3092.2,3091.8,3.41936186]
[1765601909868,0.4654,3092.2,3091.8,3.23436186]
[1765601914975,0.94040095,3092.2,3091.8,3.23436186]
[1765601922087,0.4654,3092.2,3091.8,3.23436186]
[1765601922350,0.4654,3092.2,3091.8,3.41936186]
[1765601922827,0.4654,3092.2,3091.8,3.23436186]
[1765601923622,0.4654,3092.2,3091.9,0.58047529]
[1765601923803,0.4654,3092.2,3092.0,3.23415265]
[1765601924322,0.1977,3092.3,3092.0,3.23415265]
[1765601925218,10.06882086,3092.7,3092.2,0.76547529]
[1765601925423,1.47043374,3092.6,3092.2,0.76547529]
[1765601925613,1.93583374,3092.6,3092.2,0.76547529]
[1765601925809,1.47043374,3092.6,3092.2,0.76547529]
[1765601926013,0.4654,3092.5,3092.2,0.76547529]
[1765601926634,6.37,3092.7,3092.4,0.58047529]
[1765601926936,6.8354,3092.7,3092.4,0.76547529]
[1765601931524,6.8354,3092.7,3092.4,3.99917435]
[1765601931725,6.8354,3092.7,3092.4,0.76547529]
[1765601932192,6.37,3092.7,3092.4,0.76547529]
[1765601932390,0.4909,3092.6,3092.4,0.76547529]
[1765601938539,0.4909,3092.6,3092.4,3.99920518]
[1765601938695,0.51,3092.8,3092.5,0.185]
[1765601938899,0.44269467,3092.8,3092.5,3.00997268]
[1765601939226,0.001,3092.8,3092.5,3.00997268]
[1765601939600,0.001,3092.8,3092.5,0.185]
[1765601940840,0.001,3092.8,3092.7,0.58047529]
[1765601942002,0.001,3092.8,3092.7,0.76547529]
[1765601942198,0.001,3092.8,3092.2,0.97100105]
[1765601942199,0.9578,3092.8,3091.1,0.052]
[1765601942406,2.82497268,3092.6,3091.6,0.58047529]
[1765601942634,0.51,3092.5,3091.6,0.509]
[1765601942813,0.51,3092.5,3091.5,0.58047529]
[1765601942814,0.6586,3091.7,3091.5,0.58047529]
[1765601943013,0.4659,3091.5,3091.2,0.002]
[1765601943332,0.4659,3091.3,3091.2,0.002]
[1765601943697,0.9568,3091.3,3091.2,0.002]
[1765601945231,0.51,3091.4,3091.2,0.002]
[1765601945408,0.9568,3091.3,3091.2,0.002]
[1765601952931,4.19168499,3091.3,3091.2,0.002]
[1765601954937,0.9568,3091.3,3091.2,0.002]
[1765601957243,0.4659,3091.3,3091.2,0.002]
[1765601957727,0.9568,3091.3,3091.2,0.002]
[1765601958939,1.46931845,3091.3,3091.2,0.002]
[1765601963455,0.97841845,3091.3,3091.2,0.002]
[1765601964252,0.51,3091.4,3091.2,0.187]
[1765601964429,0.51,3091.4,3091.3,0.185]
[1765601966355,3.74478035,3091.4,3091.3,0.185]
[1765601966857,4.22938035,3091.4,3091.2,0.002]
[1765601967159,4.68218035,3091.4,3091.2,0.002]
[1765601967325,0.79168566,3091.3,3091.2,0.002]
[1765601967960,1.27628566,3091.3,3091.2,0.002]
[1765601968157,4.51117065,3091.3,3091.2,0.002]
[1765601968358,4.96397065,3091.3,3091.2,0.002]
[1765601969664,1.27628566,3091.3,3091.2,0.002]
[1765601970836,0.4528,3091.5,3091.2,0.002]
[1765601970837,0.51,3091.5,3091.2,0.187]
[1765601971052,0.6455,3091.7,3091.2,0.187]
[1765601971249,4.19743537,3091.6,3091.2,0.187]
[1765601971765,0.51,3091.9,3091.5,0.185]
[1765601971963,0.51,3091.9,3091.6,0.185]
[1765601972170,0.94846756,3091.9,3091.6,0.185]
[1765601972368,1.40126756,3091.9,3091.6,0.185]
[1765601972741,0.89126756,3091.9,3091.6,0.185]
[1765601975073,0.51,3092.0,3091.8,0.185]
[1765601975473,3.23406474,3092.1,3091.8,0.185]
[1765601975679,0.4528,3092.0,3091.8,0.185]
[1765601975974,0.4528,3092.0,3091.6,0.185]
[1765601978375,0.4528,3092.0,3091.5,0.58047529]
[1765601978743,0.4528,3092.0,3091.5,0.76547529]
[1765601978943,3.6869836,3092.0,3091.5,0.76547529]
[1765601979148,5.06707705,3092.0,3091.5,0.76547529]
[1765601980878,4.61427705,3092.0,3091.5,0.76547529]
[1765601981078,0.4528,3091.9,3091.5,0.76547529]
[1765601984672,0.4528,3091.9,3091.5,0.58047529]
[1765601986683,0.4528,3091.9,3091.5,0.76547529]
[1765601991262,0.4528,3091.9,3091.6,0.58047529]
[1765601992491,0.4528,3091.9,3091.5,0.185]
[1765601992654,4.24477986,3091.9,3091.4,0.58047529]
[1765601993562,0.4801,3091.5,3091.4,0.58047529]
[1765601993755,0.4801,3091.5,3091.2,0.002]
[1765601993961,0.4801,3091.3,3091.2,0.002]
[1765601994862,3.79197986,3091.9,3091.2,4.00246493]
[1765601995071,0.4914,3091.6,3091.2,4.00246493]
[1765601997091,0.4801,3091.3,3091.2,0.58247529]
[1765601997291,0.4801,3091.3,3091.2,3.81746493]
[1765601998166,0.4914,3091.5,3091.2,4.00246493]
[1765602000373,0.4914,3091.5,3091.2,0.76747529]
[1765602000693,0.4914,3091.5,3091.2,0.58247529]
[1765602001297,0.4801,3091.3,3091.2,0.002]
[1765602001691,1.39212313,3091.3,3091.2,0.002]
[1765602003714,4.62700812,3091.3,3091.2,0.002]
[1765602004292,5.13700812,3091.3,3091.2,0.002]
[1765602006915,3.65550812,3091.3,3091.2,0.002]
[1765602007116,0.51,3091.3,3091.2,0.187]
[1765602008017,3.74488499,3091.3,3091.2,0.187]
[1765602008525,4.20638499,3091.3,3091.2,0.002]
[1765602015909,3.71498499,3091.3,3091.2,0.002]
[1765602017014,0.4801,3091.3,3091.2,0.002]
[1765602017736,0.4914,3091.5,3091.2,3.01349283]
[1765602017910,0.51,3091.5,3091.2,3.01349283]
[1765602018602,1.0014,3091.5,3091.2,3.01349283]
[1765602019337,4.23609845,3091.5,3091.2,3.01349283]
[1765602023539,0.4914,3091.5,3091.2,3.01349283]
[1765602024036,3.74460796,3091.6,3091.4,0.185]
[1765602024235,0.4874,3091.6,3091.5,2.82649283]
[1765602024618,0.9432,3091.6,3091.5,2.82649283]
[1765602025656,3.69039843,3091.6,3091.2,0.002]
[1765602025857,0.4671,3091.5,3091.2,0.002]
[1765602027450,0.4651,3091.3,3091.2,0.002]
[1765602027962,0.9322,3091.3,3091.2,0.002]
[1765602028162,4.16708499,3091.3,3091.2,0.002]
[1765602028541,0.9322,3091.3,3091.2,0.002]
[1765602029777,0.4651,3091.3,3091.2,0.002]
[1765602030339,0.4671,3091.5,3091.2,0.002]
[1765602030655,3.23462148,3091.6,3091.2,0.002]
[1765602030835,3.59132576,3091.6,3091.2,0.187]
[1765602031037,4.05842576,3091.6,3091.2,0.187]
[1765602032153,0.82380428,3091.6,3091.2,0.187]
[1765602032366,4.05838541,3091.6,3091.2,0.187]
[1765602034139,4.05838541,3091.6,3091.2,0.002]
[1765602034461,0.82380428,3091.6,3091.2,0.002]
[1765602034662,4.05841282,3091.6,3091.2,0.002]
[1765602035167,0.82380428,3091.6,3091.2,0.002]
[1765602035366,3.74450617,3091.7,3091.4,0.58047529]
[1765602035862,4.21160617,3091.7,3091.4,0.58047529]
[1765602036066,3.74450617,3091.7,3091.4,0.58047529]
[1765602036376,3.74450617,3091.7,3091.6,0.185]
[1765602036377,0.51,3091.7,3091.6,0.185]
[1765602037646,7.9111749,3091.7,3091.4,0.58047529]
[1765602037848,0.4651,3091.5,3091.4,0.58047529]
[1765602038370,4.16687572,3091.5,3091.4,0.58047529]
[1765602038573,0.9322,3091.5,3091.4,0.58047529]
[1765602039544,3.23407751,3092.1,3091.4,0.58047529]
[1765602039545,0.001,3092.8,3092.0,1.64107553]
[1765602039843,0.001,3092.8,3091.5,7.40155144]
[1765602039844,0.001,3092.8,3092.7,13.51913812]
[1765602040067,0.001,3092.8,3092.7,4.57533566]
[1765602040270,0.001,3092.8,3092.7,7.1398367]